[Event "Live Chess"]
[Site "Chess.com"]
[Date "2021.02.28"]
[Round "-"]
[White "Robertson, Callum"]
[Black "Clark, Andrew"]
[Result "1-0"]
[BlackElo "1471"]
[CurrentPosition "8/8/1K6/8/6Qp/6kP/8/8 b - -"]
[ECO "D06"]
[ECOUrl "https://www.chess.com/openings/Queens-Gambit-Declined-Marshall-Defense"]
[EndDate "2021.02.28"]
[EndTime "14:48:25"]
[Link "https://www.chess.com/live/game/8259831093"]
[StartTime "13:59:38"]
[Termination "Ananab_Pot won by resignation"]
[TimeControl "1500+10"]
[Timezone "UTC"]
[UTCDate "2021.02.28"]
[UTCTime "13:59:38"]
[WhiteElo "1552"]

1. d4 { [%clk 0:25:10] } 1... Nf6 { [%clk 0:25:10] } 2. c4 { [%clk 0:25:17.2] } 2... d5 { [%clk 0:25:17.1] } 3. cxd5 { [%clk 0:25:20.7] } 3... Nxd5 { [%clk 0:25:24.5] } 4. e4 { [%clk 0:25:00.1] } 4... Nf6 { [%clk 0:25:29.2] } 5. Nc3 { [%clk 0:25:06.1] } 5... Nbd7 { [%clk 0:25:26.3] } 6. Nf3 { [%clk 0:24:51.3] } 6... Nb6 { [%clk 0:25:26.7] } 7. Be2 { [%clk 0:23:55.7] } 7... Bg4 { [%clk 0:25:31.8] } 8. O-O { [%clk 0:23:53.9] } 8... e6 { [%clk 0:25:34.1] } 9. h3 { [%clk 0:23:31.2] } 9... Bxf3 { [%clk 0:25:40.4] } 10. Bxf3 { [%clk 0:23:35.3] } 10... c6 { [%clk 0:25:44.4] } 11. Bf4 { [%clk 0:22:28.5] } 11... Be7 { [%clk 0:25:45.7] } 12. Rc1 { [%clk 0:21:02.7] } 12... O-O { [%clk 0:25:43.1] } 13. Qd3 { [%clk 0:19:42.2] } 13... c5 { [%clk 0:23:44.8] } 14. Rfd1 { [%clk 0:18:05] } 14... Qxd4 { [%clk 0:23:42.3] } 15. Qxd4 { [%clk 0:17:23.1] } 15... cxd4 { [%clk 0:23:49.9] } 16. Rxd4 { [%clk 0:17:24.5] } 16... Rad8 { [%clk 0:23:56.7] } 17. Rcd1 { [%clk 0:16:47.6] } 17... Rxd4 { [%clk 0:23:51.5] } 18. Rxd4 { [%clk 0:16:54.7] } 18... Rd8 { [%clk 0:23:59.6] } 19. Rxd8+ { [%clk 0:16:48.5] } 19... Bxd8 { [%clk 0:24:06.1] } 20. Bg5 { [%clk 0:15:13.9] } 20... Bc7 { [%clk 0:23:42.7] } 21. Bxf6 { [%clk 0:13:32] } 21... gxf6 { [%clk 0:23:49.4] } 22. e5 { [%clk 0:13:19.9] } 22... Bxe5 { [%clk 0:23:55.7] } 23. Bxb7 { [%clk 0:13:24.1] } 23... Nc4 { [%clk 0:23:02.5] } 24. Nb5 { [%clk 0:12:35.1] } 24... Nxb2 { [%clk 0:20:21.6] } 25. Nxa7 { [%clk 0:12:30.7] } 25... Nd3 { [%clk 0:20:18.8] } 26. Nc6 { [%clk 0:11:09.3] } 26... Nc5 { [%clk 0:19:47.1] } 27. Nxe5 { [%clk 0:10:32.2] } 27... Nxb7 { [%clk 0:19:42.9] } 28. Nd7 { [%clk 0:10:19.1] } 28... Kg7 { [%clk 0:19:37.3] } 29. Kf1 { [%clk 0:10:23.8] } 29... Kg6 { [%clk 0:19:40.9] } 30. Ke2 { [%clk 0:10:28.7] } 30... Nd6 { [%clk 0:19:40.3] } 31. Kd3 { [%clk 0:10:03.7] } 31... f5 { [%clk 0:19:47.2] } 32. Nc5 { [%clk 0:09:08.3] } 32... e5 { [%clk 0:19:50.5] } 33. a4 { [%clk 0:08:45.6] } 33... e4+ { [%clk 0:19:55.5] } 34. Kd4 { [%clk 0:07:12.2] } 34... Kf6 { [%clk 0:19:52.5] } 35. a5 { [%clk 0:06:45.3] } 35... Nc8 { [%clk 0:19:23.1] } 36. a6 { [%clk 0:06:20.3] } 36... Na7 { [%clk 0:19:31] } 37. Kd5 { [%clk 0:05:14.5] } 37... Kg5 { [%clk 0:18:56.2] } 38. Kd4 { [%clk 0:03:02] } 38... Kf4 { [%clk 0:17:04.4] } 39. Nb3 { [%clk 0:02:08.8] } 39... h5 { [%clk 0:16:50.2] } 40. Nd2 { [%clk 0:02:03.6] } 40... Nc6+ { [%clk 0:15:31.1] } 41. Kc5 { [%clk 0:01:53.7] } 41... Na7 { [%clk 0:15:28.6] } 42. Kb6 { [%clk 0:01:52.4] } 42... e3 { [%clk 0:15:22.4] } 43. fxe3+ { [%clk 0:01:59.8] } 43... Kxe3 { [%clk 0:15:31.1] } 44. Kxa7 { [%clk 0:02:00.1] } 44... Kxd2 { [%clk 0:15:39.5] } 45. Kb7 { [%clk 0:02:09.2] } 45... Ke2 { [%clk 0:15:47.6] } 46. a7 { [%clk 0:02:17.9] } 46... f4 { [%clk 0:15:56.4] } 47. a8=Q { [%clk 0:02:25.8] } 47... Kf2 { [%clk 0:16:04.8] } 48. Qa2+ { [%clk 0:02:34] } 48... Kg3 { [%clk 0:16:11.8] } 49. Qe2 { [%clk 0:02:34.7] } 49... f5 { [%clk 0:16:15.4] } 50. Qf3+ { [%clk 0:02:36.6] } 50... Kh2 { [%clk 0:16:22.3] } 51. Qxf4+ { [%clk 0:02:39] } 51... Kxg2 { [%clk 0:16:30.4] } 52. Qxf5 { [%clk 0:02:40.3] } 52... h4 { [%clk 0:16:36.3] } 53. Kb6 { [%clk 0:02:45.7] } 53... Kg3 { [%clk 0:16:42.8] } 54. Qg4+ { [%clk 0:02:50.8] } 1-0

[Event "Live Chess"]
[Site "Chess.com"]
[Date "2021.02.28"]
[Round "-"]
[White "Pearson, Walter J"]
[Black "McKay, Ruairidh"]
[Result "0-1"]
[BlackElo "1549"]
[CurrentPosition "4r3/6k1/3p3p/3P4/1RP3P1/8/5K2/4q3 w - -"]
[ECO "C28"]
[ECOUrl "https://www.chess.com/openings/Bishops-Opening-Berlin-Vienna-Hybrid-Variation"]
[EndDate "2021.02.28"]
[EndTime "14:44:44"]
[Link "https://www.chess.com/live/game/8259853055"]
[StartTime "14:01:02"]
[Termination "jennlewis won by resignation"]
[TimeControl "1500+10"]
[Timezone "UTC"]
[UTCDate "2021.02.28"]
[UTCTime "14:01:02"]
[WhiteElo "1212"]

1. e4 { [%clk 0:25:10] } 1... e5 { [%clk 0:25:10] } 2. Nc3 { [%clk 0:25:17.2] } 2... Nc6 { [%clk 0:25:12.6] } 3. Bc4 { [%clk 0:25:21.1] } 3... Nf6 { [%clk 0:25:20.3] } 4. d3 { [%clk 0:25:22.7] } 4... Be7 { [%clk 0:25:25.8] } 5. f4 { [%clk 0:25:27] } 5... d6 { [%clk 0:25:23.8] } 6. f5 { [%clk 0:25:25.7] } 6... a6 { [%clk 0:25:20.4] } 7. a3 { [%clk 0:25:27.7] } 7... b5 { [%clk 0:25:20.8] } 8. Ba2 { [%clk 0:25:31.5] } 8... Nb8 { [%clk 0:25:27.4] } 9. Nf3 { [%clk 0:25:17.6] } 9... h6 { [%clk 0:25:33.6] } 10. O-O { [%clk 0:25:06.6] } 10... Bb7 { [%clk 0:25:35.5] } 11. Be3 { [%clk 0:25:08.9] } 11... c5 { [%clk 0:25:38] } 12. h3 { [%clk 0:24:42.2] } 12... Nbd7 { [%clk 0:24:52.8] } 13. Nd5 { [%clk 0:23:50.9] } 13... Nxd5 { [%clk 0:24:58.2] } 14. exd5 { [%clk 0:23:35] } 14... Nf6 { [%clk 0:24:43.5] } 15. c4 { [%clk 0:23:37.9] } 15... Bc8 { [%clk 0:23:36.9] } 16. Qe1 { [%clk 0:23:11.9] } 16... Bxf5 { [%clk 0:22:30.2] } 17. Rd1 { [%clk 0:22:51.3] } 17... Bh7 { [%clk 0:20:57.7] } 18. Nh4 { [%clk 0:22:30.1] } 18... Qd7 { [%clk 0:20:15.2] } 19. Qf2 { [%clk 0:22:21.1] } 19... bxc4 { [%clk 0:15:00.8] } 20. dxc4 { [%clk 0:22:08.4] } 20... Rb8 { [%clk 0:14:59.5] } 21. b3 { [%clk 0:21:50.7] } 21... a5 { [%clk 0:15:03.9] } 22. Nf5 { [%clk 0:21:03.9] } 22... Bxf5 { [%clk 0:15:08.9] } 23. Qxf5 { [%clk 0:21:07.8] } 23... Qxf5 { [%clk 0:15:13.6] } 24. Rxf5 { [%clk 0:21:15.2] } 24... Ne4 { [%clk 0:12:47.7] } 25. Bd2 { [%clk 0:20:06.2] } 25... Nxd2 { [%clk 0:12:19.9] } 26. Rxd2 { [%clk 0:20:13.2] } 26... Bg5 { [%clk 0:11:38.9] } 27. Rd3 { [%clk 0:19:49.2] } 27... O-O { [%clk 0:10:04.5] } 28. Rdf3 { [%clk 0:19:12.5] } 28... e4 { [%clk 0:09:53.2] } 29. Rf1 { [%clk 0:19:14.4] } 29... g6 { [%clk 0:08:56] } 30. R5f2 { [%clk 0:17:08.2] } 30... Be3 { [%clk 0:09:01.6] } 31. Kh2 { [%clk 0:17:10.5] } 31... Bxf2 { [%clk 0:09:08.3] } 32. Rxf2 { [%clk 0:17:18.8] } 32... f5 { [%clk 0:09:06.8] } 33. g3 { [%clk 0:16:53.2] } 33... g5 { [%clk 0:08:50.5] } 34. Kg2 { [%clk 0:16:50.5] } 34... f4 { [%clk 0:08:47.2] } 35. gxf4 { [%clk 0:16:49.3] } 35... gxf4 { [%clk 0:08:54.2] } 36. Rb2 { [%clk 0:16:28.5] } 36... Rbe8 { [%clk 0:08:30.1] } 37. Bb1 { [%clk 0:16:24.6] } 37... f3+ { [%clk 0:08:35.7] } 38. Kf1 { [%clk 0:16:09.7] } 38... e3 { [%clk 0:08:39.9] } 39. Bd3 { [%clk 0:16:01.7] } 39... Kg7 { [%clk 0:07:45.9] } 40. Ke1 { [%clk 0:15:51.8] } 40... Rf4 { [%clk 0:07:37.2] } 41. b4 { [%clk 0:15:32.9] } 41... axb4 { [%clk 0:07:35.1] } 42. axb4 { [%clk 0:15:38.1] } 42... cxb4 { [%clk 0:07:41.4] } 43. Rxb4 { [%clk 0:15:45.7] } 43... f2+ { [%clk 0:07:34.7] } 44. Kf1 { [%clk 0:15:45.1] } 44... Rd4 { [%clk 0:07:26.3] } 45. Be2 { [%clk 0:15:45.6] } 45... Rh4 { [%clk 0:07:10.1] } 46. Bg4 { [%clk 0:15:34.1] } 46... Rxg4 { [%clk 0:06:48.1] } 47. hxg4 { [%clk 0:15:39.3] } 47... e2+ { [%clk 0:06:56.8] } 48. Kxf2 { [%clk 0:15:44.1] } 48... e1=Q+ { [%clk 0:07:05.1] } 0-1

[Event "Live Chess"]
[Site "Chess.com"]
[Date "2021.02.28"]
[Round "-"]
[White "Vasiliadis, Theodoros"]
[Black "Linskaill, Chris"]
[Result "1-0"]
[BlackElo "1608"]
[CurrentPosition "2Q4r/1p2qPk1/p2b4/3pN3/8/1P5r/P5RB/5R1K b - -"]
[ECO "B12"]
[ECOUrl "https://www.chess.com/openings/Caro-Kann-Defense-Advance-Tal-Variation"]
[EndDate "2021.02.28"]
[EndTime "12:10:36"]
[Link "https://www.chess.com/live/game/8249105083"]
[StartTime "11:05:45"]
[Termination "crywolf63 won on time"]
[TimeControl "1500+10"]
[Timezone "UTC"]
[UTCDate "2021.02.28"]
[UTCTime "11:05:45"]
[WhiteElo "1721"]

1. e4 { [%clk 0:25:10] } 1... c6 { [%clk 0:25:10] } 2. d4 { [%clk 0:25:16] } 2... d5 { [%clk 0:25:17] } 3. e5 { [%clk 0:25:18.2] } 3... Bf5 { [%clk 0:25:19.1] } 4. h4 { [%clk 0:25:25.6] } 4... h5 { [%clk 0:25:25.9] } 5. Nf3 { [%clk 0:25:27.1] } 5... e6 { [%clk 0:25:24.6] } 6. Be2 { [%clk 0:25:34.7] } 6... Nd7 { [%clk 0:25:30.5] } 7. O-O { [%clk 0:25:39] } 7... Be7 { [%clk 0:25:29.3] } 8. Bg5 { [%clk 0:25:42.5] } 8... Qb6 { [%clk 0:25:31.3] } 9. b3 { [%clk 0:25:31.2] } 9... c5 { [%clk 0:25:20.7] } 10. dxc5 { [%clk 0:24:31.4] } 10... Bxc5 { [%clk 0:25:18.3] } 11. Nc3 { [%clk 0:24:25.6] } 11... Be7 { [%clk 0:25:17.2] } 12. Nb5 { [%clk 0:21:14.4] } 12... Bc5 { [%clk 0:23:16.4] } 13. c3 { [%clk 0:19:46.9] } 13... a6 { [%clk 0:23:22.1] } 14. Nbd4 { [%clk 0:19:29.7] } 14... Bg6 { [%clk 0:23:26] } 15. Bd3 { [%clk 0:16:04.4] } 15... Bxd3 { [%clk 0:23:32.1] } 16. Qxd3 { [%clk 0:16:14.3] } 16... Nh6 { [%clk 0:23:06.7] } 17. Rac1 { [%clk 0:12:30.7] } 17... Ng4 { [%clk 0:23:12.1] } 18. Bf4 { [%clk 0:12:27.3] } 18... Ba3 { [%clk 0:22:02.7] } 19. Rc2 { [%clk 0:12:11.6] } 19... O-O { [%clk 0:16:27.3] } 20. Ng5 { [%clk 0:09:14.4] } 20... g6 { [%clk 0:15:41.4] } 21. Re2 { [%clk 0:09:12.6] } 21... Kg7 { [%clk 0:15:15.8] } 22. f3 { [%clk 0:08:30.9] } 22... Nh6 { [%clk 0:14:54.5] } 23. Kh1 { [%clk 0:08:14] } 23... Nf5 { [%clk 0:12:40.7] } 24. Nxf5+ { [%clk 0:08:09.1] } 24... gxf5 { [%clk 0:12:46.9] } 25. g4 { [%clk 0:06:27.5] } 25... hxg4 { [%clk 0:12:51.9] } 26. fxg4 { [%clk 0:06:29] } 26... Rh8 { [%clk 0:12:59] } 27. gxf5 { [%clk 0:06:19.5] } 27... Rxh4+ { [%clk 0:13:04.8] } 28. Bh2 { [%clk 0:04:29] } 28... Nxe5 { [%clk 0:12:56.1] } 29. Rxe5 { [%clk 0:04:01.3] } 29... Bd6 { [%clk 0:12:18.5] } 30. Re2 { [%clk 0:03:07.3] } 30... Rah8 { [%clk 0:12:19.2] } 31. Nf3 { [%clk 0:02:44.9] } 31... Rh3 { [%clk 0:12:19] } 32. fxe6 { [%clk 0:02:28.5] } 32... Qc7 { [%clk 0:11:54.7] } 33. Rg2+ { [%clk 0:01:37] } 33... Kf8 { [%clk 0:11:59.3] } 34. Qe2 { [%clk 0:01:13.4] } 34... Qxc3 { [%clk 0:10:12.5] } 35. exf7 { [%clk 0:00:57.2] } 35... Qc8 { [%clk 0:10:03.6] } 36. Ne5 { [%clk 0:00:37.3] } 36... R3h6 { [%clk 0:07:12.8] } 37. Ng4 { [%clk 0:00:18.2] } 37... R6h7 { [%clk 0:03:27.5] } 38. Qf3 { [%clk 0:00:20.3] } 38... Qe6 { [%clk 0:03:07.9] } 39. Rff2 { [%clk 0:00:12.6] } 39... Qe1+ { [%clk 0:02:07.2] } 40. Rg1 { [%clk 0:00:13.6] } 40... Qe6 { [%clk 0:01:43.9] } 41. Rgg2 { [%clk 0:00:13.9] } 41... Rh3 { [%clk 0:00:29.6] } 42. Qf5 { [%clk 0:00:18.7] } 42... Qe1+ { [%clk 0:00:24.4] } 43. Rf1 { [%clk 0:00:26.5] } 43... Qe7 { [%clk 0:00:19.4] } 44. Qc8+ { [%clk 0:00:22.6] } 44... Kg7 { [%clk 0:00:14.7] } 45. Ne5+ { [%clk 0:00:22] } 1-0

[Event "Live Chess"]
[Site "Chess.com"]
[Date "2021.02.28"]
[Round "-"]
[White "Moon, Billy"]
[Black "Mitchell, Jeremy J"]
[Result "0-1"]
[BlackElo "2128"]
[CurrentPosition "8/3k2p1/p2r3p/Pp2KP1P/2p3P1/2P5/1P6/8 w - -"]
[ECO "B10"]
[ECOUrl "https://www.chess.com/openings/Caro-Kann-Defense-2.Nf3-d5"]
[EndDate "2021.02.28"]
[EndTime "11:44:50"]
[Link "https://www.chess.com/live/game/8250203537"]
[StartTime "11:18:24"]
[Termination "Croalin won by resignation"]
[TimeControl "1500+10"]
[Timezone "UTC"]
[UTCDate "2021.02.28"]
[UTCTime "11:18:24"]
[WhiteElo "1589"]

1. e4 { [%clk 0:25:10] } 1... c6 { [%clk 0:25:10] } 2. Nf3 { [%clk 0:25:11.1] } 2... d5 { [%clk 0:25:14.9] } 3. e5 { [%clk 0:25:09.1] } 3... Bg4 { [%clk 0:25:21.6] } 4. d4 { [%clk 0:25:15.1] } 4... e6 { [%clk 0:25:25.1] } 5. h3 { [%clk 0:25:08] } 5... Bh5 { [%clk 0:25:27.8] } 6. g4 { [%clk 0:25:09.8] } 6... Bg6 { [%clk 0:25:36.2] } 7. Bg5 { [%clk 0:25:16.7] } 7... Be7 { [%clk 0:25:41.7] } 8. Bxe7 { [%clk 0:25:24.4] } 8... Nxe7 { [%clk 0:25:48.2] } 9. Bd3 { [%clk 0:25:16.3] } 9... c5 { [%clk 0:25:45.2] } 10. dxc5 { [%clk 0:25:02.7] } 10... Qa5+ { [%clk 0:25:43] } 11. c3 { [%clk 0:23:28.6] } 11... Qxc5 { [%clk 0:25:46.7] } 12. Bxg6 { [%clk 0:23:24.4] } 12... Nxg6 { [%clk 0:25:53.8] } 13. Qd4 { [%clk 0:23:25.5] } 13... Qc7 { [%clk 0:25:54.7] } 14. Nbd2 { [%clk 0:23:04.6] } 14... Nc6 { [%clk 0:26:01.6] } 15. Qe3 { [%clk 0:23:00.9] } 15... Ngxe5 { [%clk 0:26:07.4] } 16. Nxe5 { [%clk 0:23:08.6] } 16... Qxe5 { [%clk 0:26:01.9] } 17. Qe2 { [%clk 0:22:36.8] } 17... Qxe2+ { [%clk 0:25:43.8] } 18. Kxe2 { [%clk 0:22:46.7] } 18... Ne5 { [%clk 0:25:52] } 19. f4 { [%clk 0:22:51.3] } 19... Nc4 { [%clk 0:25:19.1] } 20. Nxc4 { [%clk 0:22:50.8] } 20... dxc4 { [%clk 0:25:27.5] } 21. Rhd1 { [%clk 0:22:58.5] } 21... Ke7 { [%clk 0:25:19.9] } 22. Rd4 { [%clk 0:23:05.8] } 22... Rac8 { [%clk 0:25:27.1] } 23. Rad1 { [%clk 0:23:13.7] } 23... Rhd8 { [%clk 0:25:33.1] } 24. Ke3 { [%clk 0:23:13.5] } 24... a6 { [%clk 0:25:32.8] } 25. a4 { [%clk 0:22:13.2] } 25... Rxd4 { [%clk 0:25:22.4] } 26. Rxd4 { [%clk 0:22:13] } 26... Rc6 { [%clk 0:25:28.9] } 27. Rd2 { [%clk 0:21:36.6] } 27... f6 { [%clk 0:25:17.9] } 28. f5 { [%clk 0:21:13.9] } 28... e5 { [%clk 0:24:43.5] } 29. Ke4 { [%clk 0:21:11.9] } 29... Rd6 { [%clk 0:24:43.3] } 30. Rd5 { [%clk 0:21:08.7] } 30... b6 { [%clk 0:24:34.1] } 31. h4 { [%clk 0:20:13.5] } 31... h6 { [%clk 0:24:34.7] } 32. h5 { [%clk 0:20:20.7] } 32... Kd7 { [%clk 0:24:41.7] } 33. a5 { [%clk 0:20:11] } 33... b5 { [%clk 0:24:27] } 34. Rc5 { [%clk 0:18:16.3] } 34... Kd8 { [%clk 0:23:39.6] } 35. Rd5 { [%clk 0:17:57.9] } 35... Kc7 { [%clk 0:23:42.1] } 36. Rc5+ { [%clk 0:18:01.7] } 36... Kd7 { [%clk 0:23:50.5] } 37. Ke3 { [%clk 0:18:00.2] } 37... Rc6 { [%clk 0:23:00.6] } 38. Rd5+ { [%clk 0:17:52.7] } 38... Kc7 { [%clk 0:23:01.2] } 39. Kf3 { [%clk 0:17:26.7] } 39... Rd6 { [%clk 0:22:15.3] } 40. Ke4 { [%clk 0:17:31.3] } 40... Kc6 { [%clk 0:22:17.9] } 41. Rxe5 { [%clk 0:16:22.6] } 41... fxe5 { [%clk 0:22:19.6] } 42. Kxe5 { [%clk 0:16:32.5] } 42... Kd7 { [%clk 0:22:11.2] } 0-1

[Event "Live Chess"]
[Site "Chess.com"]
[Date "2021.02.28"]
[Round "-"]
[White "Ramazanov, Vagif"]
[Black "Dowle, Chris"]
[Result "1-0"]
[BlackElo "940"]
[CurrentPosition "6k1/4q1p1/p1N3Qp/1p6/2r5/2P2P2/PP4P1/3R1K2 b - -"]
[ECO "B33"]
[ECOUrl "https://www.chess.com/openings/Sicilian-Defense-Open-3...cxd4-4.Nxd4"]
[EndDate "2021.02.28"]
[EndTime "12:00:59"]
[Link "https://www.chess.com/live/game/8249693611"]
[StartTime "11:15:02"]
[Termination "Vagif03 won by resignation"]
[TimeControl "1500+10"]
[Timezone "UTC"]
[UTCDate "2021.02.28"]
[UTCTime "11:15:02"]
[WhiteElo "1389"]

1. e4 { [%clk 0:25:10] } 1... c5 { [%clk 0:25:10] } 2. Nf3 { [%clk 0:25:18.2] } 2... Nc6 { [%clk 0:25:17.5] } 3. d4 { [%clk 0:25:26.8] } 3... cxd4 { [%clk 0:25:25.2] } 4. Nxd4 { [%clk 0:25:36.7] } 4... d6 { [%clk 0:25:33.5] } 5. Nc3 { [%clk 0:25:39.7] } 5... Nf6 { [%clk 0:25:27.2] } 6. Bg5 { [%clk 0:25:45] } 6... e5 { [%clk 0:25:32.5] } 7. Ndb5 { [%clk 0:25:45.8] } 7... a6 { [%clk 0:25:23.2] } 8. Na3 { [%clk 0:25:52.3] } 8... h6 { [%clk 0:25:18.2] } 9. Bxf6 { [%clk 0:25:29] } 9... Qxf6 { [%clk 0:25:09.6] } 10. Nd5 { [%clk 0:25:38.9] } 10... Qd8 { [%clk 0:25:00.9] } 11. Nc4 { [%clk 0:25:41.7] } 11... b5 { [%clk 0:23:46] } 12. Ncb6 { [%clk 0:25:44.1] } 12... Rb8 { [%clk 0:23:46.5] } 13. Nxc8 { [%clk 0:25:26.1] } 13... Rxc8 { [%clk 0:23:51.4] } 14. Be2 { [%clk 0:25:30.3] } 14... Nd4 { [%clk 0:22:21.1] } 15. c3 { [%clk 0:25:13.6] } 15... Nxe2 { [%clk 0:22:27.4] } 16. Qxe2 { [%clk 0:25:23.5] } 16... Be7 { [%clk 0:21:44.1] } 17. O-O { [%clk 0:25:20.8] } 17... O-O { [%clk 0:21:50.7] } 18. Rfd1 { [%clk 0:25:27.3] } 18... Rc6 { [%clk 0:19:21.1] } 19. Rd3 { [%clk 0:25:15.9] } 19... Qd7 { [%clk 0:18:50.5] } 20. Rad1 { [%clk 0:25:08.4] } 20... f5 { [%clk 0:17:06.7] } 21. exf5 { [%clk 0:25:01.5] } 21... Rf7 { [%clk 0:06:46.7] } 22. Nb4 { [%clk 0:23:41.6] } 22... Rc4 { [%clk 0:04:39.1] } 23. Qxe5 { [%clk 0:23:30.7] } 23... Rxf5 { [%clk 0:04:09.3] } 24. Qe3 { [%clk 0:22:49.6] } 24... Bg5 { [%clk 0:03:43.4] } 25. Qb6 { [%clk 0:22:10.6] } 25... Qf7 { [%clk 0:03:02.8] } 26. f3 { [%clk 0:20:39.4] } 26... Re5 { [%clk 0:02:48.6] } 27. Kf1 { [%clk 0:19:31.2] } 27... Qf4 { [%clk 0:01:25] } 28. Qxd6 { [%clk 0:16:25.9] } 28... Qxh2 { [%clk 0:01:22] } 29. Qg6 { [%clk 0:16:33.1] } 29... Qh1+ { [%clk 0:00:42.6] } 30. Kf2 { [%clk 0:16:40.5] } 30... Be3+ { [%clk 0:00:46.2] } 31. Rxe3 { [%clk 0:16:27.6] } 31... Qh4+ { [%clk 0:00:45] } 32. Ke2 { [%clk 0:16:05.6] } 32... Rxe3+ { [%clk 0:00:51] } 33. Kxe3 { [%clk 0:16:15.5] } 33... Qe7+ { [%clk 0:00:49.6] } 34. Kf2 { [%clk 0:16:12.8] } 34... Qa7+ { [%clk 0:00:51.1] } 35. Kf1 { [%clk 0:16:13.8] } 35... Qe7 { [%clk 0:00:52.6] } 36. Nc6 { [%clk 0:16:09.6] } 1-0

[Event "Live Chess"]
[Site "Chess.com"]
[Date "2021.02.28"]
[Round "-"]
[White "Munshi, Aryan"]
[Black "O`Donnell, Matthew"]
[Result "0-1"]
[BlackElo "1845"]
[CurrentPosition "8/5k2/7R/1p6/r2PK3/6P1/p6P/8 w - -"]
[ECO "A41"]
[ECOUrl "https://www.chess.com/openings/Queens-Pawn-Opening-English-Rat-Defense-3.dxe5"]
[EndDate "2021.02.28"]
[EndTime "11:54:00"]
[Link "https://www.chess.com/live/game/8249040363"]
[StartTime "11:01:08"]
[Termination "msod92 won by resignation"]
[TimeControl "1500+10"]
[Timezone "UTC"]
[UTCDate "2021.02.28"]
[UTCTime "11:01:08"]
[WhiteElo "1450"]

1. d4 { [%clk 0:25:10] } 1... d6 { [%clk 0:25:10] } 2. c4 { [%clk 0:24:45.5] } 2... e5 { [%clk 0:25:17.8] } 3. dxe5 { [%clk 0:24:35.6] } 3... dxe5 { [%clk 0:25:27.7] } 4. Qxd8+ { [%clk 0:24:44.1] } 4... Kxd8 { [%clk 0:25:37.6] } 5. Nf3 { [%clk 0:24:52.9] } 5... Nc6 { [%clk 0:25:42] } 6. Nc3 { [%clk 0:25:01.3] } 6... Be6 { [%clk 0:25:19.8] } 7. e3 { [%clk 0:24:55.8] } 7... Nf6 { [%clk 0:25:09] } 8. a3 { [%clk 0:24:45.9] } 8... a5 { [%clk 0:24:23.4] } 9. Bd2 { [%clk 0:24:42.3] } 9... Bd6 { [%clk 0:24:18.7] } 10. O-O-O { [%clk 0:24:48.2] } 10... Ke7 { [%clk 0:24:16.8] } 11. Ng5 { [%clk 0:24:06.5] } 11... Rhd8 { [%clk 0:23:21.8] } 12. Nxe6 { [%clk 0:24:14.1] } 12... Kxe6 { [%clk 0:23:29.7] } 13. Be2 { [%clk 0:24:12.1] } 13... e4 { [%clk 0:22:29.2] } 14. Nb5 { [%clk 0:24:00.1] } 14... Rac8 { [%clk 0:19:29.4] } 15. Bc3 { [%clk 0:23:20.2] } 15... b6 { [%clk 0:16:48.9] } 16. Nd4+ { [%clk 0:19:08.7] } 16... Nxd4 { [%clk 0:16:44.8] } 17. exd4 { [%clk 0:19:15.5] } 17... c6 { [%clk 0:15:11.2] } 18. g3 { [%clk 0:17:54.2] } 18... Ke7 { [%clk 0:13:42.7] } 19. f3 { [%clk 0:17:16.9] } 19... Kf8 { [%clk 0:13:15.7] } 20. Rhe1 { [%clk 0:16:27] } 20... Re8 { [%clk 0:12:03.4] } 21. Kc2 { [%clk 0:14:11.2] } 21... a4 { [%clk 0:10:08.5] } 22. fxe4 { [%clk 0:12:12.9] } 22... Nxe4 { [%clk 0:10:03.3] } 23. Bf3 { [%clk 0:12:19.9] } 23... f5 { [%clk 0:07:56.6] } 24. Bxe4 { [%clk 0:12:22.1] } 24... Rxe4 { [%clk 0:07:44.4] } 25. Rxe4 { [%clk 0:12:28.1] } 25... fxe4 { [%clk 0:07:54.3] } 26. Re1 { [%clk 0:12:35.6] } 26... Re8 { [%clk 0:07:55.5] } 27. Bd2 { [%clk 0:10:31.3] } 27... b5 { [%clk 0:06:16.5] } 28. Bb4 { [%clk 0:09:28.9] } 28... Bxb4 { [%clk 0:05:47.7] } 29. axb4 { [%clk 0:09:36.9] } 29... Kf7 { [%clk 0:05:35.5] } 30. cxb5 { [%clk 0:09:08] } 30... cxb5 { [%clk 0:05:43] } 31. Kd2 { [%clk 0:09:17] } 31... Kf6 { [%clk 0:04:10.4] } 32. Rf1+ { [%clk 0:08:37] } 32... Ke6 { [%clk 0:03:42.4] } 33. Ke3 { [%clk 0:08:26.4] } 33... Rc8 { [%clk 0:03:27.9] } 34. Kxe4 { [%clk 0:08:26.3] } 34... Rc2 { [%clk 0:03:29.6] } 35. Rf8 { [%clk 0:07:43] } 35... Rxb2 { [%clk 0:03:25.5] } 36. Re8+ { [%clk 0:07:49.7] } 36... Kd7 { [%clk 0:03:27] } 37. Rb8 { [%clk 0:07:58.2] } 37... Rxb4 { [%clk 0:03:27.5] } 38. Rb7+ { [%clk 0:08:06.3] } 38... Kc6 { [%clk 0:03:23.4] } 39. Rxg7 { [%clk 0:08:14] } 39... a3 { [%clk 0:03:32.4] } 40. Ra7 { [%clk 0:08:18.5] } 40... Ra4 { [%clk 0:03:35.9] } 41. Rxh7 { [%clk 0:08:07.5] } 41... a2 { [%clk 0:03:35.1] } 42. Rh6+ { [%clk 0:08:16.7] } 42... Kd7 { [%clk 0:03:37.1] } 43. Rh7+ { [%clk 0:08:25.5] } 43... Ke6 { [%clk 0:03:40.5] } 44. Rh6+ { [%clk 0:08:31.4] } 44... Kf7 { [%clk 0:03:48.5] } 0-1